[Event "Late-Titled-Tuesday-Blitz-October-03-2023"]
[Site "Chess.com"]
[Date "2023.10.03"]
[Round "2"]
[White "stasOR4ik"]
[Black "Elbebiber"]
[Result "1/2-1/2"]
[WhiteElo "2427"]
[BlackElo "2149"]
[TimeControl "180+1"]
[EndTime "14:18:23 PDT"]
[Termination "Game drawn - insufficient material"]

1. e4 {[%clk 0:03:00.9]} 1... d5 {[%clk 0:02:59.7]} 2. exd5 {[%clk 0:03:00.8]}
2... Nf6 {[%clk 0:03:00.2]} 3. Nf3 {[%clk 0:02:59.6]} 3... Nxd5 {[%clk 0:02:59]}
4. Bc4 {[%clk 0:03:00.3]} 4... c6 {[%clk 0:02:54.1]} 5. O-O {[%clk 0:03:00.2]}
5... Bf5 {[%clk 0:02:52.5]} 6. d4 {[%clk 0:02:58.4]} 6... e6 {[%clk 0:02:52.5]}
7. Re1 {[%clk 0:02:54.6]} 7... Be7 {[%clk 0:02:51.9]} 8. Nc3 {[%clk 0:02:54.7]}
8... O-O {[%clk 0:02:49.9]} 9. Ne4 {[%clk 0:02:54.4]} 9... Nd7 {[%clk
0:02:45.4]} 10. Ng3 {[%clk 0:02:52]} 10... Bg6 {[%clk 0:02:45.6]} 11. Ne5 {[%clk
0:02:51.1]} 11... Nxe5 {[%clk 0:02:45.2]} 12. dxe5 {[%clk 0:02:51.6]} 12... Nb6
{[%clk 0:02:42.5]} 13. Bb3 {[%clk 0:02:49.6]} 13... Qxd1 {[%clk 0:02:41.8]} 14.
Rxd1 {[%clk 0:02:49.5]} 14... Rfd8 {[%clk 0:02:41.8]} 15. Be3 {[%clk 0:02:46.7]}
15... Kf8 {[%clk 0:02:35.6]} 16. f3 {[%clk 0:02:33.3]} 16... Ke8 {[%clk
0:02:31.3]} 17. Kf1 {[%clk 0:02:31.2]} 17... Rxd1+ {[%clk 0:02:22.2]} 18. Rxd1
{[%clk 0:02:30.7]} 18... Rd8 {[%clk 0:02:22.4]} 19. Ke2 {[%clk 0:02:22.1]} 19...
Rxd1 {[%clk 0:02:18.5]} 20. Kxd1 {[%clk 0:02:22.1]} 20... Kd7 {[%clk 0:02:09.5]}
21. Ne4 {[%clk 0:02:19.4]} 21... Bxe4 {[%clk 0:02:06.8]} 22. fxe4 {[%clk
0:02:20.3]} 22... Nc8 {[%clk 0:01:57.4]} 23. Ke2 {[%clk 0:02:19.4]} 23... b6
{[%clk 0:01:56.6]} 24. Kd3 {[%clk 0:02:16]} 24... Bd8 {[%clk 0:01:44.7]} 25. a4
{[%clk 0:02:14]} 25... Ne7 {[%clk 0:01:43.7]} 26. a5 {[%clk 0:02:11.3]} 26...
Ng6 {[%clk 0:01:42.9]} 27. Bd4 {[%clk 0:02:06.6]} 27... bxa5 {[%clk 0:01:34.8]}
28. Bxa7 {[%clk 0:01:44.5]} 28... Nxe5+ {[%clk 0:01:31.1]} 29. Kd4 {[%clk
0:01:44.9]} 29... Ng6 {[%clk 0:01:25.4]} 30. Ba4 {[%clk 0:01:40.1]} 30... Bf6+
{[%clk 0:01:24.6]} 31. Kc5 {[%clk 0:01:38.8]} 31... Bxb2 {[%clk 0:01:21.3]} 32.
Bxc6+ {[%clk 0:01:38.1]} 32... Ke7 {[%clk 0:01:21.6]} 33. Kb5 {[%clk 0:01:33.1]}
33... Bc3 {[%clk 0:01:17.1]} 34. Bc5+ {[%clk 0:01:28.9]} 34... Kf6 {[%clk
0:01:16.8]} 35. Bb6 {[%clk 0:01:22.7]} 35... Ne5 {[%clk 0:01:10.2]} 36. Bb7
{[%clk 0:01:17.9]} 36... Ke7 {[%clk 0:01:01.6]} 37. Bxa5 {[%clk 0:01:13.1]}
37... Bxa5 {[%clk 0:01:01.2]} 38. Kxa5 {[%clk 0:01:13.4]} 38... Kd6 {[%clk
0:01:01.1]} 39. Kb5 {[%clk 0:01:07.6]} 39... Nd7 {[%clk 0:00:45.4]} 40. c4
{[%clk 0:01:05.3]} 40... e5 {[%clk 0:00:43.4]} 41. Bd5 {[%clk 0:00:59.8]} 41...
f6 {[%clk 0:00:41.8]} 42. g4 {[%clk 0:00:56.4]} 42... g5 {[%clk 0:00:31.9]} 43.
h3 {[%clk 0:00:54.5]} 43... Nc5 {[%clk 0:00:30.6]} 44. Bc6 {[%clk 0:00:41]}
44... h6 {[%clk 0:00:27.3]} 45. Bd5 {[%clk 0:00:40.5]} 45... Nd3 {[%clk
0:00:27.3]} 46. Kb6 {[%clk 0:00:38.6]} 46... Nc5 {[%clk 0:00:27.6]} 47. Ba8
{[%clk 0:00:36]} 47... Nd7+ {[%clk 0:00:25.5]} 48. Kb5 {[%clk 0:00:34.6]} 48...
Nc5 {[%clk 0:00:25.8]} 49. Bd5 {[%clk 0:00:34.6]} 49... Nd7 {[%clk 0:00:24.8]}
50. Ka6 {[%clk 0:00:27.8]} 50... Nc5+ {[%clk 0:00:22.6]} 51. Kb6 {[%clk
0:00:27]} 51... Nd7+ {[%clk 0:00:22.2]} 52. Kb7 {[%clk 0:00:27.2]} 52... Nc5+
{[%clk 0:00:22.6]} 53. Kc8 {[%clk 0:00:27.4]} 53... Nd3 {[%clk 0:00:13]} 54. Kd8
{[%clk 0:00:22.4]} 54... Nf2 {[%clk 0:00:13.1]} 55. Ke8 {[%clk 0:00:23.1]} 55...
Nxh3 {[%clk 0:00:13.4]} 56. Kf7 {[%clk 0:00:23.8]} 56... Nf2 {[%clk 0:00:13.5]}
57. Kxf6 {[%clk 0:00:24.3]} 57... Nxg4+ {[%clk 0:00:13.7]} 58. Kg6 {[%clk
0:00:25]} 58... Nf2 {[%clk 0:00:13.1]} 59. Kh5 {[%clk 0:00:12.3]} 59... g4
{[%clk 0:00:10.5]} 60. Kh4 {[%clk 0:00:12.9]} 60... h5 {[%clk 0:00:08.9]} 61.
Bf7 {[%clk 0:00:12.7]} 61... Kc5 {[%clk 0:00:07.8]} 62. Bxh5 {[%clk 0:00:12.9]}
62... Nxe4 {[%clk 0:00:06.7]} 63. Kxg4 {[%clk 0:00:10.7]} 63... Kxc4 {[%clk
0:00:05.6]} 64. Kf5 {[%clk 0:00:09.3]} 64... Kd4 {[%clk 0:00:05.9]} 65. Bf3
{[%clk 0:00:07.8]} 65... Nc3 {[%clk 0:00:04.7]} 66. Bh1 {[%clk 0:00:07.3]} 66...
Nb5 {[%clk 0:00:04.7]} 67. Ke6 {[%clk 0:00:06]} 67... Nc3 {[%clk 0:00:04.5]} 68.
Kd6 {[%clk 0:00:05.7]} 68... Ne2 {[%clk 0:00:04.7]} 69. Kc7 {[%clk 0:00:05.5]}
69... Ng3 {[%clk 0:00:05]} 70. Bc6 {[%clk 0:00:05.6]} 70... Nf5 {[%clk
0:00:04.6]} 71. Bh1 {[%clk 0:00:05.8]} 71... Ne3 {[%clk 0:00:04.8]} 72. Ba8
{[%clk 0:00:05.9]} 72... Nc2 {[%clk 0:00:04.7]} 73. Kd6 {[%clk 0:00:05.5]} 73...
Nb4 {[%clk 0:00:05.1]} 74. Kc7 {[%clk 0:00:05.6]} 74... Nd3 {[%clk 0:00:05.7]}
75. Bh1 {[%clk 0:00:05.7]} 75... Nf2 {[%clk 0:00:05.5]} 76. Bf3 {[%clk
0:00:05.7]} 76... Nh3 {[%clk 0:00:05.3]} 77. Bg2 {[%clk 0:00:05.8]} 77... Nf4
{[%clk 0:00:06.2]} 78. Bh1 {[%clk 0:00:06.3]} 78... Nd5+ {[%clk 0:00:06.6]} 79.
Kd6 {[%clk 0:00:06]} 79... e4 {[%clk 0:00:07]} 80. Bxe4 {[%clk 0:00:06]} 1/2-1/2

[Event "Late-Titled-Tuesday-Blitz-October-03-2023"]
[Site "Chess.com"]
[Date "2023.10.03"]
[Round "2"]
[White "GiorgianBarbosa"]
[Black "protectiago"]
[Result "0-1"]
[WhiteElo "2392"]
[BlackElo "2063"]
[TimeControl "180+1"]
[EndTime "14:18:24 PDT"]
[Termination "protectiago won on time"]

1. c4 {[%clk 0:02:59.4]} 1... Nf6 {[%clk 0:03:00]} 2. Nc3 {[%clk 0:02:58.8]}
2... g6 {[%clk 0:02:50.4]} 3. g3 {[%clk 0:02:57.3]} 3... Bg7 {[%clk 0:02:50]} 4.
Bg2 {[%clk 0:02:58.2]} 4... e5 {[%clk 0:02:50.6]} 5. e4 {[%clk 0:02:55.1]} 5...
O-O {[%clk 0:02:50.1]} 6. Nge2 {[%clk 0:02:56]} 6... Nc6 {[%clk 0:02:50.5]} 7.
O-O {[%clk 0:02:55.4]} 7... d6 {[%clk 0:02:50.8]} 8. d3 {[%clk 0:02:56.3]} 8...
Ne8 {[%clk 0:02:38.5]} 9. h3 {[%clk 0:02:56.7]} 9... f5 {[%clk 0:02:37.7]} 10.
f4 {[%clk 0:02:56.2]} 10... fxe4 {[%clk 0:02:36.9]} 11. Nxe4 {[%clk 0:02:57.1]}
11... Rb8 {[%clk 0:02:33.2]} 12. Kh2 {[%clk 0:02:55.4]} 12... Nf6 {[%clk
0:02:25.5]} 13. Rb1 {[%clk 0:02:47.1]} 13... Nxe4 {[%clk 0:02:25.6]} 14. Bxe4
{[%clk 0:02:46.9]} 14... Bd7 {[%clk 0:02:13.3]} 15. Be3 {[%clk 0:02:42.4]} 15...
Kh8 {[%clk 0:01:58.9]} 16. Qd2 {[%clk 0:02:40.8]} 16... exf4 {[%clk 0:01:47.4]}
17. Nxf4 {[%clk 0:02:40.6]} 17... Ne5 {[%clk 0:01:46.7]} 18. b3 {[%clk
0:02:33.8]} 18... Bc6 {[%clk 0:01:45.3]} 19. Nd5 {[%clk 0:02:32.7]} 19... Bxd5
{[%clk 0:01:38.9]} 20. Bxd5 {[%clk 0:02:31.9]} 20... Qd7 {[%clk 0:01:31.4]} 21.
d4 {[%clk 0:02:26.2]} 21... Nc6 {[%clk 0:01:29.4]} 22. Bxc6 {[%clk 0:02:16.1]}
22... Qxc6 {[%clk 0:01:29.3]} 23. d5 {[%clk 0:02:16.1]} 23... Qd7 {[%clk
0:01:29.1]} 24. Bd4 {[%clk 0:02:16.4]} 24... Bxd4 {[%clk 0:01:25.2]} 25. Qxd4+
{[%clk 0:02:17.3]} 25... Qg7 {[%clk 0:01:25.8]} 26. Qxg7+ {[%clk 0:02:11]} 26...
Kxg7 {[%clk 0:01:25.9]} 27. Rxf8 {[%clk 0:02:07.2]} 27... Rxf8 {[%clk
0:01:24.8]} 28. Kg2 {[%clk 0:02:07.2]} 28... Rf5 {[%clk 0:01:22.9]} 29. Re1
{[%clk 0:02:07.1]} 29... Kf7 {[%clk 0:01:23.1]} 30. b4 {[%clk 0:02:00]} 30... h6
{[%clk 0:01:22]} 31. a4 {[%clk 0:01:59.7]} 31... g5 {[%clk 0:01:22]} 32. Re6
{[%clk 0:01:58.2]} 32... Rf6 {[%clk 0:01:21]} 33. Re4 {[%clk 0:01:53.1]} 33...
Rf5 {[%clk 0:01:21]} 34. a5 {[%clk 0:01:46.8]} 34... a6 {[%clk 0:01:19.7]} 35.
Re6 {[%clk 0:01:35.2]} 35... Rf6 {[%clk 0:01:15]} 36. Re4 {[%clk 0:01:28.9]}
36... Rf5 {[%clk 0:01:07.1]} 37. g4 {[%clk 0:01:23]} 37... Rf6 {[%clk
0:01:04.8]} 38. Re3 {[%clk 0:01:23.6]} 38... Kg6 {[%clk 0:00:47.7]} 39. Re7
{[%clk 0:01:20]} 39... Rf4 {[%clk 0:00:47.2]} 40. Rxc7 {[%clk 0:01:19]} 40...
Kf6 {[%clk 0:00:47.4]} 41. Rxb7 {[%clk 0:01:15]} 41... Rxc4 {[%clk 0:00:47.5]}
42. Rb6 {[%clk 0:01:15.9]} 42... Ke5 {[%clk 0:00:47.9]} 43. b5 {[%clk 0:01:03]}
43... axb5 {[%clk 0:00:47.2]} 44. Rxb5 {[%clk 0:01:03.9]} 44... Ra4 {[%clk
0:00:41.7]} 45. Kg3 {[%clk 0:00:28.8]} 45... Ra3+ {[%clk 0:00:39.4]} 46. Kg2
{[%clk 0:00:29]} 46... Ra2+ {[%clk 0:00:20.7]} 47. Kf1 {[%clk 0:00:27]} 47...
Kf4 {[%clk 0:00:17.3]} 48. Ke1 {[%clk 0:00:22.2]} 48... Kg3 {[%clk 0:00:17]} 49.
Kd1 {[%clk 0:00:12.8]} 49... Kxh3 {[%clk 0:00:16.9]} 50. Kc1 {[%clk 0:00:13.7]}
50... Kxg4 {[%clk 0:00:16.8]} 51. Kb1 {[%clk 0:00:14.6]} 51... Ra4 {[%clk
0:00:17.2]} 52. Kb2 {[%clk 0:00:15.5]} 52... h5 {[%clk 0:00:15.7]} 53. Kb3
{[%clk 0:00:15.3]} 53... Ra1 {[%clk 0:00:16.2]} 54. Rb4+ {[%clk 0:00:10.8]}
54... Kg3 {[%clk 0:00:15.5]} 55. Ra4 {[%clk 0:00:11.7]} 55... Rb1+ {[%clk
0:00:15.9]} 56. Kc4 {[%clk 0:00:11.7]} 56... h4 {[%clk 0:00:15.5]} 57. a6 {[%clk
0:00:10.8]} 57... Rb8 {[%clk 0:00:16.2]} 58. a7 {[%clk 0:00:10.7]} 58... Ra8
{[%clk 0:00:16.6]} 59. Ra3+ {[%clk 0:00:03.3]} 59... Kg2 {[%clk 0:00:16.1]} 60.
Ra2+ {[%clk 0:00:03.6]} 60... Kg3 {[%clk 0:00:16.2]} 61. Ra3+ {[%clk 0:00:04]}
61... Kf4 {[%clk 0:00:14.9]} 62. Kd4 {[%clk 0:00:03.5]} 62... g4 {[%clk
0:00:14.4]} 63. Ra1 {[%clk 0:00:02.9]} 63... g3 {[%clk 0:00:14.5]} 64. Rf1+
{[%clk 0:00:03.3]} 64... Kg4 {[%clk 0:00:14.7]} 0-1

[Event "Late-Titled-Tuesday-Blitz-October-03-2023"]
[Site "Chess.com"]
[Date "2023.10.03"]
[Round "2"]
[White "tomozupan"]
[Black "Defenstrator"]
[Result "1-0"]
[WhiteElo "2233"]
[BlackElo "2449"]
[TimeControl "180+1"]
[EndTime "14:18:30 PDT"]
[Termination "tomozupan won by checkmate"]

1. d4 {[%clk 0:03:00.9]} 1... Nf6 {[%clk 0:03:00.1]} 2. Bg5 {[%clk 0:03:00]}
2... e6 {[%clk 0:02:57.7]} 3. e4 {[%clk 0:02:59.1]} 3... h6 {[%clk 0:02:55.3]}
4. Bxf6 {[%clk 0:02:59]} 4... Qxf6 {[%clk 0:02:55.1]} 5. Nf3 {[%clk 0:02:59.2]}
5... d5 {[%clk 0:02:52.3]} 6. e5 {[%clk 0:02:58.5]} 6... Qd8 {[%clk 0:02:50.8]}
7. Qd2 {[%clk 0:02:56]} 7... c5 {[%clk 0:02:49.4]} 8. c3 {[%clk 0:02:54.7]} 8...
Nc6 {[%clk 0:02:47.7]} 9. Bd3 {[%clk 0:02:53.5]} 9... Qb6 {[%clk 0:02:32.3]} 10.
O-O {[%clk 0:02:50.4]} 10... Bd7 {[%clk 0:02:30.7]} 11. Na3 {[%clk 0:02:34.1]}
11... cxd4 {[%clk 0:02:29.1]} 12. cxd4 {[%clk 0:02:33.5]} 12... Bxa3 {[%clk
0:02:19.4]} 13. bxa3 {[%clk 0:02:33.1]} 13... Nxd4 {[%clk 0:02:19.8]} 14. Nxd4
{[%clk 0:02:31.9]} 14... Qxd4 {[%clk 0:02:18]} 15. Rab1 {[%clk 0:02:31.7]} 15...
b6 {[%clk 0:02:08.6]} 16. Rb4 {[%clk 0:02:29.8]} 16... Qxe5 {[%clk 0:02:08.2]}
17. Re1 {[%clk 0:02:29.3]} 17... Qf6 {[%clk 0:01:58.7]} 18. Rf4 {[%clk
0:02:27.3]} 18... Qe7 {[%clk 0:01:53.3]} 19. Rg4 {[%clk 0:02:22.9]} 19... g5
{[%clk 0:01:36]} 20. f4 {[%clk 0:02:15.7]} 20... O-O-O {[%clk 0:01:12.4]} 21.
fxg5 {[%clk 0:02:04.7]} 21... hxg5 {[%clk 0:01:12.8]} 22. Rxg5 {[%clk
0:01:56.8]} 22... Qxa3 {[%clk 0:01:02.5]} 23. Rg3 {[%clk 0:01:30.1]} 23... Qc5+
{[%clk 0:00:57.4]} 24. Kh1 {[%clk 0:01:29.2]} 24... Kb7 {[%clk 0:00:51.1]} 25.
Rc1 {[%clk 0:01:25.1]} 25... Qd6 {[%clk 0:00:51.4]} 26. Qf2 {[%clk 0:01:20.2]}
26... f5 {[%clk 0:00:40.5]} 27. h3 {[%clk 0:01:17.4]} 27... Rhg8 {[%clk
0:00:32.4]} 28. Rxg8 {[%clk 0:01:09.4]} 28... Rxg8 {[%clk 0:00:33.3]} 29. Qe2
{[%clk 0:01:09.2]} 29... e5 {[%clk 0:00:23]} 30. Ba6+ {[%clk 0:01:05.6]} 30...
Kb8 {[%clk 0:00:23.6]} 31. Qh5 {[%clk 0:00:54.1]} 31... d4 {[%clk 0:00:20.6]}
32. Qf7 {[%clk 0:00:53.1]} 32... Rf8 {[%clk 0:00:14.2]} 33. Qg7 {[%clk
0:00:44.4]} 33... Rd8 {[%clk 0:00:10.3]} 34. Re1 {[%clk 0:00:37.6]} 34... e4
{[%clk 0:00:09.5]} 35. Qg5 {[%clk 0:00:24.9]} 35... Be6 {[%clk 0:00:08.9]} 36.
Qg7 {[%clk 0:00:22.4]} 36... Qc7 {[%clk 0:00:07.8]} 37. Qf6 {[%clk 0:00:20.3]}
37... Bc8 {[%clk 0:00:07.5]} 38. Bxc8 {[%clk 0:00:17]} 38... Qxc8 {[%clk
0:00:08]} 39. Qe5+ {[%clk 0:00:15.3]} 39... Ka8 {[%clk 0:00:06.1]} 40. Rf1
{[%clk 0:00:10.2]} 40... d3 {[%clk 0:00:05]} 41. Qf4 {[%clk 0:00:08.9]} 41... d2
{[%clk 0:00:05]} 42. Rd1 {[%clk 0:00:08.7]} 42... Qc2 {[%clk 0:00:04.2]} 43. Qf1
{[%clk 0:00:08]} 43... Rc8 {[%clk 0:00:02.1]} 44. Kh2 {[%clk 0:00:07.5]} 44...
Qc7+ {[%clk 0:00:02.6]} 45. g3 {[%clk 0:00:06.8]} 45... Qc2 {[%clk 0:00:02.5]}
46. Qe2 {[%clk 0:00:06.5]} 46... Kb8 {[%clk 0:00:02.9]} 47. Rxd2 {[%clk
0:00:06.2]} 47... Qc5 {[%clk 0:00:03.3]} 48. Qf2 {[%clk 0:00:05.5]} 48... e3
{[%clk 0:00:03.7]} 49. Qf4+ {[%clk 0:00:05]} 49... Kb7 {[%clk 0:00:04.6]} 50.
Re2 {[%clk 0:00:05.2]} 50... Re8 {[%clk 0:00:04.8]} 51. Qf3+ {[%clk 0:00:04.5]}
51... Ka6 {[%clk 0:00:04.6]} 52. h4 {[%clk 0:00:05.4]} 52... Qe5 {[%clk
0:00:05.2]} 53. Qg2 {[%clk 0:00:05.2]} 53... Qe4 {[%clk 0:00:05.4]} 54. Qxe4
{[%clk 0:00:05]} 54... Rxe4 {[%clk 0:00:06.1]} 55. Kg2 {[%clk 0:00:04.6]} 55...
Kb5 {[%clk 0:00:06.1]} 56. Kf3 {[%clk 0:00:05.2]} 56... Ra4 {[%clk 0:00:04.7]}
57. Kxe3 {[%clk 0:00:05.2]} 57... Kc5 {[%clk 0:00:04.5]} 58. Kf3 {[%clk
0:00:05.5]} 58... Kd5 {[%clk 0:00:04.8]} 59. h5 {[%clk 0:00:05.9]} 59... Ra3+
{[%clk 0:00:05.2]} 60. Kf4 {[%clk 0:00:05.2]} 60... b5 {[%clk 0:00:04.2]} 61. h6
{[%clk 0:00:05.1]} 61... Ra6 {[%clk 0:00:03.9]} 62. Rh2 {[%clk 0:00:04.8]} 62...
Ra4+ {[%clk 0:00:03.3]} 63. Kxf5 {[%clk 0:00:04.1]} 63... Ra3 {[%clk 0:00:02.1]}
64. h7 {[%clk 0:00:04.2]} 64... Rf3+ {[%clk 0:00:03]} 65. Kg4 {[%clk 0:00:03.8]}
65... Rd3 {[%clk 0:00:03]} 66. h8=Q {[%clk 0:00:03.8]} 66... Rd4+ {[%clk
0:00:03.9]} 67. Kf3 {[%clk 0:00:04]} 67... Rd3+ {[%clk 0:00:04.7]} 68. Ke2
{[%clk 0:00:04.1]} 68... Rxg3 {[%clk 0:00:05.1]} 69. Rh5+ {[%clk 0:00:03.7]}
69... Ke4 {[%clk 0:00:05.4]} 70. Qe5# {[%clk 0:00:03.6]} 1-0

[Event "Late-Titled-Tuesday-Blitz-October-03-2023"]
[Site "Chess.com"]
[Date "2023.10.03"]
[Round "2"]
[White "reevecanada"]
[Black "Harsha_Bharathakoti"]
[Result "0-1"]
[WhiteElo "2557"]
[BlackElo "2918"]
[TimeControl "180+1"]
[EndTime "14:18:34 PDT"]
[Termination "Harsha_Bharathakoti won by resignation"]

1. e4 {[%clk 0:02:59.6]} 1... e5 {[%clk 0:02:52.8]} 2. Nf3 {[%clk 0:02:59.6]}
2... Nc6 {[%clk 0:02:52.9]} 3. d4 {[%clk 0:02:59.4]} 3... exd4 {[%clk
0:02:50.2]} 4. Nxd4 {[%clk 0:03:00.3]} 4... Nf6 {[%clk 0:02:49.8]} 5. Nxc6
{[%clk 0:02:59.8]} 5... bxc6 {[%clk 0:02:49.8]} 6. Nd2 {[%clk 0:02:59.7]} 6...
d6 {[%clk 0:02:46]} 7. Bd3 {[%clk 0:02:53.8]} 7... g6 {[%clk 0:02:46]} 8. O-O
{[%clk 0:02:53.6]} 8... Bg7 {[%clk 0:02:46.3]} 9. h3 {[%clk 0:02:51.8]} 9... O-O
{[%clk 0:02:46.5]} 10. Nf3 {[%clk 0:02:50.9]} 10... Re8 {[%clk 0:02:46.1]} 11.
Re1 {[%clk 0:02:50.8]} 11... Rb8 {[%clk 0:02:46.1]} 12. c3 {[%clk 0:02:50.7]}
12... Nd7 {[%clk 0:02:39.1]} 13. Nd4 {[%clk 0:02:49.3]} 13... Bb7 {[%clk
0:02:38.5]} 14. Bc2 {[%clk 0:02:43.7]} 14... c5 {[%clk 0:02:37.2]} 15. Nb3
{[%clk 0:02:43]} 15... Ne5 {[%clk 0:02:36.2]} 16. Bf4 {[%clk 0:02:34.2]} 16...
Ba8 {[%clk 0:02:27.5]} 17. Bxe5 {[%clk 0:02:26.7]} 17... Bxe5 {[%clk 0:02:27.1]}
18. Rb1 {[%clk 0:02:18.2]} 18... Qh4 {[%clk 0:02:20.2]} 19. Nd2 {[%clk
0:02:15.7]} 19... Bg7 {[%clk 0:02:13.8]} 20. Qg4 {[%clk 0:02:09.2]} 20... Qe7
{[%clk 0:02:07]} 21. Bb3 {[%clk 0:01:58.8]} 21... h5 {[%clk 0:02:05.7]} 22. Qf4
{[%clk 0:01:54.6]} 22... Be5 {[%clk 0:01:54.9]} 23. Qh6 {[%clk 0:01:47.5]} 23...
Bg7 {[%clk 0:01:40.5]} 24. Qf4 {[%clk 0:01:41.5]} 24... Bc6 {[%clk 0:01:40.5]}
25. Nf3 {[%clk 0:01:36.4]} 25... Qf6 {[%clk 0:01:19.8]} 26. Qxf6 {[%clk
0:01:29.6]} 26... Bxf6 {[%clk 0:01:20.7]} 27. Bd5 {[%clk 0:01:29.8]} 27... Bd7
{[%clk 0:01:20.6]} 28. Nd2 {[%clk 0:01:23.2]} 28... Kg7 {[%clk 0:01:13.8]} 29.
Nf1 {[%clk 0:01:16.8]} 29... Rb6 {[%clk 0:01:07.1]} 30. Bb3 {[%clk 0:01:03.7]}
30... Bc6 {[%clk 0:01:02.6]} 31. f3 {[%clk 0:01:02.6]} 31... a5 {[%clk
0:01:02.4]} 32. Ne3 {[%clk 0:00:59.1]} 32... a4 {[%clk 0:01:00.8]} 33. Bc4
{[%clk 0:00:58.4]} 33... Reb8 {[%clk 0:00:56.4]} 34. Nd1 {[%clk 0:00:47.5]}
34... h4 {[%clk 0:00:49.8]} 35. a3 {[%clk 0:00:40.4]} 35... Be5 {[%clk
0:00:49.7]} 36. Re2 {[%clk 0:00:38.8]} 36... Bd7 {[%clk 0:00:44.8]} 37. Rc1
{[%clk 0:00:37.8]} 37... c6 {[%clk 0:00:43.5]} 38. Rcc2 {[%clk 0:00:36.2]} 38...
Bc8 {[%clk 0:00:28.8]} 39. Kf1 {[%clk 0:00:34.4]} 39... Bb7 {[%clk 0:00:29.1]}
40. Ne3 {[%clk 0:00:33.4]} 40... Rd8 {[%clk 0:00:27]} 41. Rcd2 {[%clk
0:00:33.2]} 41... Bf4 {[%clk 0:00:27.6]} 42. Rd3 {[%clk 0:00:31.4]} 42... Ba8
{[%clk 0:00:26.3]} 43. Red2 {[%clk 0:00:29.2]} 43... Rdb8 {[%clk 0:00:25.7]} 44.
Nd1 {[%clk 0:00:21.1]} 44... Bxd2 {[%clk 0:00:25.6]} 45. Rxd2 {[%clk 0:00:22]}
45... Rd8 {[%clk 0:00:25.6]} 46. Ne3 {[%clk 0:00:20.4]} 46... Kf6 {[%clk
0:00:26.1]} 47. Ng4+ {[%clk 0:00:19.5]} 47... Ke7 {[%clk 0:00:26.7]} 48. Ne3
{[%clk 0:00:19.9]} 48... Rbb8 {[%clk 0:00:26.8]} 49. Kf2 {[%clk 0:00:19.8]}
49... Bb7 {[%clk 0:00:27.4]} 50. f4 {[%clk 0:00:20.1]} 50... Bc8 {[%clk
0:00:27.9]} 51. Kf3 {[%clk 0:00:20.4]} 51... Be6 {[%clk 0:00:28.6]} 52. Bxe6
{[%clk 0:00:20.2]} 52... fxe6 {[%clk 0:00:29.3]} 53. c4 {[%clk 0:00:20.6]} 53...
Rb3 {[%clk 0:00:28.6]} 54. Kf2 {[%clk 0:00:20.7]} 54... Rf8 {[%clk 0:00:29.3]}
55. f5 {[%clk 0:00:20.2]} 55... g5 {[%clk 0:00:30]} 56. Ke2 {[%clk 0:00:18.5]}
56... Rfb8 {[%clk 0:00:28.4]} 57. Nd1 {[%clk 0:00:17.7]} 57... Rg3 {[%clk
0:00:26.3]} 58. Kf2 {[%clk 0:00:16.3]} 58... exf5 {[%clk 0:00:26.9]} 59. exf5
{[%clk 0:00:16.2]} 59... Rgb3 {[%clk 0:00:27.6]} 60. Re2+ {[%clk 0:00:15.9]}
60... Kd7 {[%clk 0:00:26.7]} 61. Rd2 {[%clk 0:00:15.9]} 61... Rf8 {[%clk
0:00:27]} 62. Ne3 {[%clk 0:00:15.6]} 62... Rfb8 {[%clk 0:00:26.3]} 63. Nd1
{[%clk 0:00:15.2]} 63... Re8 {[%clk 0:00:25.9]} 64. Nc3 {[%clk 0:00:14.3]} 64...
Re5 {[%clk 0:00:24.5]} 65. Kf3 {[%clk 0:00:14.5]} 65... Rxf5+ {[%clk 0:00:24.7]}
66. Kg4 {[%clk 0:00:15.1]} 66... Re5 {[%clk 0:00:21.1]} 67. Nxa4 {[%clk
0:00:15.5]} 67... Rg3+ {[%clk 0:00:21.4]} 68. Kh5 {[%clk 0:00:14.9]} 68... Kc7
{[%clk 0:00:11.6]} 69. Nc3 {[%clk 0:00:15.2]} 69... Rge3 {[%clk 0:00:11.6]} 70.
Kg4 {[%clk 0:00:14.9]} 70... Rg3+ {[%clk 0:00:11.3]} 71. Kh5 {[%clk 0:00:14.3]}
71... Rge3 {[%clk 0:00:11.4]} 72. Kg4 {[%clk 0:00:13.9]} 72... Re1 {[%clk
0:00:11.7]} 73. a4 {[%clk 0:00:11.9]} 73... Rf1 {[%clk 0:00:11.7]} 74. a5 {[%clk
0:00:09.6]} 74... Rf4+ {[%clk 0:00:12.3]} 75. Kh5 {[%clk 0:00:09.9]} 75... Rxc4
{[%clk 0:00:13]} 76. Rf2 {[%clk 0:00:10]} 76... g4+ {[%clk 0:00:10.2]} 77. Kxh4
{[%clk 0:00:09.4]} 77... gxh3+ {[%clk 0:00:11.1]} 78. Kxh3 {[%clk 0:00:09.5]}
78... Re7 {[%clk 0:00:11.8]} 79. g4 {[%clk 0:00:08.9]} 79... d5 {[%clk
0:00:12.1]} 80. Kg3 {[%clk 0:00:09]} 80... d4 {[%clk 0:00:12]} 81. Ne2 {[%clk
0:00:09.6]} 81... Rc2 {[%clk 0:00:11.6]} 82. Nf4 {[%clk 0:00:10.2]} 82... Rxf2
{[%clk 0:00:12.4]} 83. Kxf2 {[%clk 0:00:10.8]} 83... c4 {[%clk 0:00:13.1]} 84.
g5 {[%clk 0:00:11.4]} 84... d3 {[%clk 0:00:13.7]} 85. g6 {[%clk 0:00:08.1]}
85... d2 {[%clk 0:00:13.9]} 86. g7 {[%clk 0:00:08.9]} 86... d1=Q {[%clk
0:00:08.4]} 87. g8=Q {[%clk 0:00:09.3]} 87... Qd2+ {[%clk 0:00:09.1]} 88. Kg3
{[%clk 0:00:08]} 88... Qe3+ {[%clk 0:00:09.5]} 89. Kg4 {[%clk 0:00:08.4]} 89...
Qg1+ {[%clk 0:00:09.9]} 0-1